fUST/lending_fUST_20260129
["ID","MTS","AMOUNT","RATE_DAILY","PERIOD"]
[403932581,1769683840268,-159.74515792,0.00013273,2]
[403932583,1769683840278,-500.0,0.00013273,2]
[403932585,1769683840289,-500.0,0.00013273,2]
[403932587,1769683840299,-500.0,0.00013273,2]
[403932590,1769683840310,-500.0,0.00013273,2]
[403932592,1769683840321,-217.62261144,0.00013273,2]
[403932594,1769683840332,-500.0,0.00013273,2]
[403932596,1769683840342,-162.28812704,0.00013273,2]
[403932598,1769683840353,-500.0,0.00013273,2]
[403932600,1769683840363,-500.15361623,0.00013273,2]
[403932603,1769683840374,-500.0,0.00013273,2]
[403932605,1769683840385,-500.0,0.00013273,2]
[403932607,1769683840395,-500.0,0.00013273,2]
[403932609,1769683840406,-500.0,0.00013273,2]
[403932611,1769683840417,-402.96126214,0.00013273,2]
[403932614,1769683840427,-500.0,0.00013273,2]
[403932616,1769683840438,-500.0,0.00013273,2]
[403932618,1769683840450,-3712.02819986,0.00013408,2]
[403932620,1769683840460,-500.0,0.00013462,2]
[403932622,1769683840470,-720.0,0.00013567,2]
[403932625,1769683840480,-300.0,0.00013673,2]
[403932627,1769683840491,-155.315,0.00013697,2]
[403932629,1769683840502,-500.0,0.00013698,2]
[403932631,1769683840512,-500.0,0.00013698,2]
[403932633,1769683840523,-610.45891108,0.00013698,2]
[403932635,1769683840533,-500.0,0.00013698,2]
[403932638,1769683840544,-500.0,0.00013698,2]
[403932640,1769683840555,-500.0,0.00013698,2]
[403932642,1769683840565,-500.0,0.00013698,2]
[403932644,1769683840576,-500.0,0.00013698,2]
[403932647,1769683840587,-500.0,0.00013698,2]
[403932649,1769683840598,-500.0,0.00013698,2]
[403932651,1769683840608,-500.0,0.00013698,2]
[403932653,1769683840618,-500.0,0.00013698,2]
[403932655,1769683840628,-500.0,0.00013698,2]
[403932657,1769683840639,-500.0,0.00013698,2]
[403932659,1769683840650,-500.0,0.00013698,2]
[403932661,1769683840660,-500.0,0.00013698,2]
[403932664,1769683840673,-500.0,0.00013698,2]
[403932666,1769683840684,-500.0,0.00013698,2]
[403932668,1769683840694,-500.0,0.00013698,2]
[403932670,1769683840704,-500.0,0.00013698,2]
[403932672,1769683840715,-500.0,0.00013698,2]
[403932674,1769683840725,-500.0,0.00013698,2]
[403932677,1769683840736,-492.70915793,0.00013698,2]
[403932679,1769683840746,-525.32488563,0.00013698,2]
[403932681,1769683840756,-500.0,0.00013698,2]
[403932683,1769683840766,-500.0,0.00013698,2]
[403932685,1769683840777,-500.0,0.00013698,2]
[403932687,1769683840787,-500.0,0.00013698,2]
[403932689,1769683840797,-500.0,0.00013698,2]
[403932691,1769683840808,-500.0,0.00013698,2]
[403932693,1769683840819,-500.0,0.00013698,2]
[403932713,1769683840994,-583.95253597,0.00013698,2]
[403932715,1769683841012,-500.0,0.00013698,2]
[403932718,1769683841023,-500.0,0.00013698,2]
[403932720,1769683841034,-500.0,0.00013698,2]
[403932722,1769683841044,-500.0,0.00013698,2]
[403932723,1769683841053,-500.0,0.00013698,2]
[403932725,1769683841063,-500.0,0.00013698,2]
[403932727,1769683841072,-500.0,0.00013698,2]
[403932730,1769683841082,-544.76043412,0.00013698,2]
[403932732,1769683841093,-500.0,0.00013698,2]
[403932734,1769683841102,-533.70108919,0.00013698,2]
[403932735,1769683841112,-500.0,0.00013698,2]
[403932737,1769683841121,-500.0,0.00013698,2]
[403932739,1769683841131,-500.0,0.00013698,2]
[403932741,1769683841140,-500.0,0.00013698,2]
[403932743,1769683841149,-500.0,0.00013698,2]
[403932745,1769683841160,-502.22690096,0.00013698,2]
[403932747,1769683841169,-530.03606409,0.00013698,2]
[403932749,1769683841178,-500.0,0.00013698,2]
[403932751,1769683841186,-500.0,0.00013698,2]
[403932753,1769683841195,-500.0,0.00013698,2]
[403932755,1769683841204,-500.0,0.00013698,2]
[403932757,1769683841213,-500.0,0.00013698,2]
[403932759,1769683841223,-500.0,0.00013698,2]
[403932761,1769683841232,-518.94139039,0.00013698,2]
[403932763,1769683841241,-607.57,0.00013698,2]
[403932765,1769683841250,-607.57,0.00013698,2]
[403932767,1769683841260,-607.57,0.00013698,2]
[403932769,1769683841270,-607.57,0.00013698,2]
[403932771,1769683841279,-607.57,0.00013698,2]
[403932773,1769683841288,-607.57,0.00013698,2]
[403932775,1769683841298,-607.57,0.00013698,2]
[403932777,1769683841307,-607.57,0.00013698,2]
[403932779,1769683841316,-607.57,0.00013698,2]
[403932781,1769683841325,-607.57,0.00013698,2]
[403932783,1769683841335,-607.57,0.00013698,2]
[403932785,1769683841345,-607.57,0.00013698,2]
[403932787,1769683841354,-607.57,0.00013698,2]
[403932789,1769683841363,-607.57,0.00013698,2]
[403932791,1769683841372,-607.57,0.00013698,2]
[403932793,1769683841381,-607.57,0.00013698,2]
[403932795,1769683841390,-607.57,0.00013698,2]
[403932797,1769683841399,-607.57,0.00013698,2]
[403932799,1769683841408,-607.57,0.00013698,2]
[403932801,1769683841416,-607.57,0.00013698,2]
[403932803,1769683841425,-607.57,0.00013698,2]
[403932805,1769683841434,-607.57,0.00013698,2]
[403932807,1769683841442,-607.57,0.00013698,2]
[403932809,1769683841451,-607.6,0.00013698,2]
[403932811,1769683841460,-500.0,0.00013698,2]
[403932813,1769683841469,-500.0,0.00013698,2]
[403932815,1769683841477,-500.0,0.00013698,2]
[403932817,1769683841486,-500.0,0.00013698,2]
[403932819,1769683841495,-500.0,0.00013698,2]
[403932820,1769683841504,-500.0,0.00013698,2]
[403932822,1769683841513,-500.0,0.00013698,2]
[403932824,1769683841522,-500.0,0.00013698,2]
[403932826,1769683841531,-500.0,0.00013698,2]
[403932828,1769683841540,-500.0,0.00013698,2]
[403932830,1769683841549,-500.0,0.00013698,2]
[403932832,1769683841558,-500.0,0.00013698,2]
[403932834,1769683841566,-500.0,0.00013698,2]
[403932836,1769683841575,-500.0,0.00013698,2]
[403932838,1769683841584,-500.0,0.00013698,2]
[403932840,1769683841593,-500.0,0.00013698,2]
[403932842,1769683841604,-500.0,0.00013698,2]
[403932844,1769683841614,-500.0,0.00013698,2]
[403932846,1769683841623,-500.0,0.00013698,2]
[403932848,1769683841634,-500.0,0.00013698,2]
[403932850,1769683841643,-500.0,0.00013698,2]
[403932852,1769683841652,-500.0,0.00013698,2]
[403932854,1769683841663,-500.0,0.00013698,2]
[403932856,1769683841671,-500.0,0.00013698,2]
[403932858,1769683841680,-2952.7637492,0.00013699,2]
[403932860,1769683841689,-1000.0,0.00013699,2]
[403932862,1769683841698,-500.0,0.00013699,2]
[403932864,1769683841707,-500.0,0.00013699,2]
[403932866,1769683841717,-500.0,0.00013699,2]
[403932868,1769683841726,-500.0,0.00013699,2]
[403932870,1769683841735,-507.77467851,0.00013699,2]
[403932872,1769683841743,-314.792435,0.00013699,2]
[403932874,1769683841752,-500.0,0.00013699,2]
[403932876,1769683841761,-500.0,0.00013699,2]
[403932878,1769683841770,-500.0,0.00013699,2]
[403932880,1769683841779,-501.76365168,0.00013699,2]
[403932882,1769683841788,-500.0,0.00013699,2]
[403932884,1769683841797,-500.75803963,0.00013699,2]
[403932886,1769683841806,-500.0,0.00013699,2]
[403932888,1769683841814,-500.0,0.00013699,2]
[403932890,1769683841823,-501.60095283,0.00013699,2]
[403932892,1769683841832,-500.84679195,0.00013699,2]
[403932894,1769683841841,-291.60725507,0.00013699,2]
[403932896,1769683841851,-500.0,0.00013699,2]
[403932897,1769683841860,-500.0,0.00013699,2]
[403932899,1769683841869,-505.40496948,0.00013699,2]
[403932901,1769683841879,-500.0,0.00013699,2]
[403932903,1769683841890,-500.0,0.00013699,2]
[403932906,1769683841901,-502.71899874,0.00013699,2]
[403932908,1769683841911,-500.0,0.00013699,2]
[403932909,1769683841922,-500.0,0.00013699,2]
[403932911,1769683841931,-500.0,0.00013699,2]
[403932913,1769683841940,-500.0,0.00013699,2]
[403932915,1769683841949,-330.78761952,0.00013699,2]
[403932917,1769683841961,-293.94369268,0.00013699,2]
[403932919,1769683841971,-500.0,0.00013736,2]
[403932921,1769683841980,-330.25226352,0.00013762,2]
[403932923,1769683841989,-399.87672354,0.00013821,2]
[403932925,1769683841999,-636.43381346,0.00013821,2]
[403932928,1769683842010,-500.0,0.00013821,2]
[403932930,1769683842019,-501.40141245,0.00013821,2]
[403932931,1769683842028,-1000.0,0.00013821,2]
[403932933,1769683842040,-501.0352963,0.00013821,2]
[403932935,1769683842049,-1000.0,0.00013821,2]
[403932937,1769683842058,-1006.38016949,0.00013821,2]
[403932939,1769683842067,-1000.0,0.00013821,2]
[403932941,1769683842077,-1000.0,0.00013821,2]
[403932943,1769683842086,-696.99444629,0.00013821,2]
[403932945,1769683842095,-502.84198919,0.00013821,2]
[403932947,1769683842104,-1000.0,0.00013821,2]
[403932949,1769683842114,-502.121625,0.00013821,2]
[403932951,1769683842123,-316.97781624,0.00013821,2]
[403932953,1769683842132,-1000.0,0.00013821,2]
[403932955,1769683842141,-1000.0,0.00013821,2]
[403932957,1769683842151,-1000.0,0.00013821,2]
[403932959,1769683842160,-468.87374591,0.00013821,2]
[403932961,1769683842170,-1000.0,0.00013821,2]
[403932963,1769683842178,-1000.0,0.00013821,2]
[403932965,1769683842187,-1000.0,0.00013821,2]
[403932967,1769683842196,-1000.0,0.00013821,2]
[403932969,1769683842206,-500.92401321,0.00013821,2]
[403932971,1769683842215,-1000.0,0.00013821,2]
[403932973,1769683842224,-504.66671492,0.00013821,2]
[403932975,1769683842234,-355.419529,0.00013821,2]
[403932977,1769683842243,-1000.0,0.00013821,2]
[403932979,1769683842252,-1000.0,0.00013821,2]
[403932981,1769683842262,-1000.0,0.00013821,2]
[403932983,1769683842271,-1000.0,0.00013821,2]
[403932985,1769683842281,-1000.0,0.00013821,2]
[403932987,1769683842290,-1000.0,0.00013821,2]
[403932989,1769683842300,-319.34,0.0001384,2]
[403932991,1769683842309,-153.61,0.0001384,2]
[403932993,1769683842318,-153.61,0.0001384,2]
[403932995,1769683842327,-153.61,0.0001384,2]
[403932997,1769683842336,-153.61,0.0001384,2]
[403932999,1769683842345,-153.63,0.0001384,2]
[403933001,1769683842354,-1000.0,0.00013973,2]
[403933003,1769683842363,-500.0,0.0001401,2]
[403933005,1769683842373,-209.40437684,0.000141,2]
[403933007,1769683842383,-693.3919763,0.000141,2]
[403933009,1769683842391,-1741.00052949,0.000141,2]
[403933011,1769683842400,-255.04015786,0.000141,2]
[403933013,1769683842409,-212.5608784,0.000141,2]
[403933015,1769683842419,-151.0,0.000141,2]
[403933017,1769683842429,-30000.0,0.000141,2]
[403933019,1769683842438,-151.0,0.000141,2]
[403933021,1769683842447,-151.0,0.000141,2]
[403933023,1769683842456,-151.0,0.000141,2]
[403933025,1769683842465,-151.0,0.000141,2]
[403933027,1769683842475,-151.0,0.000141,2]
[403933029,1769683842484,-246.47777937,0.000141,2]
[403933031,1769683842493,-574.12855637,0.000141,2]
[403933033,1769683842502,-2773.56790519,0.000141,2]
[403933035,1769683842511,-3712.02819986,0.00014112,2]
[403933037,1769683842520,-209.40437684,0.00014129,2]
[403933039,1769683842530,-217.15233878,0.00014129,2]
[403933041,1769683842539,-225.18697532,0.00014129,2]
[403933043,1769683842548,-233.51889341,0.00014129,2]
[403933045,1769683842557,-242.15909246,0.00014129,2]
[403933047,1769683842566,-251.11897888,0.00014129,2]
[403933049,1769683842577,-260.4103811,0.00014129,2]
[403933051,1769683842586,-270.0455652,0.00014129,2]
[403933053,1769683842595,-280.03725112,0.00014129,2]
[403933055,1769683842605,-290.39862941,0.00014129,2]
[403933057,1769683842614,-301.1433787,0.00014129,2]
[403933059,1769683842623,-1957.856,0.00014129,2]
[403933061,1769683842632,-9835.07,0.00014149,2]
[403933063,1769683842641,-600.0,0.00014221,2]
[403933065,1769683842650,-1000.0,0.00014247,2]
[403933067,1769683842659,-592.85387235,0.00014247,2]
[403933069,1769683842668,-1000.0,0.00014247,2]
[403933071,1769683842678,-160.9968606,0.00014247,2]
[403933073,1769683842687,-1000.0,0.00014247,2]
[403933075,1769683842696,-1000.0,0.00014247,2]
[403933077,1769683842705,-504.15902707,0.00014247,2]
[403933079,1769683842713,-500.0,0.00014247,2]
[403933081,1769683842722,-1000.0,0.00014247,2]
[403933083,1769683842731,-1000.0,0.00014247,2]
[403933085,1769683842740,-1102.21614882,0.00014247,2]
[403933087,1769683842750,-1134.23032778,0.00014247,2]
[403933089,1769683842759,-1000.0,0.00014247,2]
[403933091,1769683842768,-1000.0,0.00014247,2]
[403933093,1769683842778,-500.0,0.00014284,2]
[403933095,1769683842787,-1500.0,0.00014368,2]
[403933097,1769683842795,-517.09664357,0.00014368,2]
[403933099,1769683842804,-1500.0,0.00014368,2]
[403933101,1769683842814,-768.34650551,0.00014368,2]
[403933103,1769683842823,-969.61936393,0.00014368,2]
[403933105,1769683842832,-1500.0,0.00014368,2]
[403933107,1769683842841,-1500.0,0.00014368,2]
[403933109,1769683842850,-1559.00085584,0.00014368,2]
[403933111,1769683842860,-1500.0,0.00014368,2]
[403933113,1769683842869,-1500.0,0.00014368,2]
[403933115,1769683842878,-1500.0,0.00014368,2]
[403933117,1769683842887,-507.51247725,0.00014368,2]
[403933119,1769683842896,-1500.0,0.00014368,2]
[403933121,1769683842905,-1500.0,0.00014368,2]
[403933123,1769683842914,-397.62397769,0.00014368,2]
[403933125,1769683842923,-502.6154559,0.00014368,2]
[403933127,1769683842932,-1500.0,0.00014368,2]
[403933129,1769683842942,-607.3138929,0.00014368,2]
[403933131,1769683842951,-1500.0,0.00014368,2]
[403933133,1769683842962,-167.59538682,0.00014384,2]
[403933135,1769683842971,-212.00662806,0.00014386,2]
[403933138,1769683842982,-2330.31694202,0.00014437,2]
[403933141,1769683842991,-587.0,0.00014451,2]
[403933142,1769683843000,-2079.55665597,0.00014467,2]
[403933144,1769683843011,-720.0,0.00014509,2]
[403933147,1769683843020,-3107.80937866,0.00014543,2]
[403933149,1769683843030,-217.15233878,0.00014648,2]
[403933150,1769683843041,-719.04747942,0.00014648,2]
[403933153,1769683843050,-31110.0,0.00014648,2]
[403933154,1769683843059,-595.37131296,0.00014648,2]
[403933156,1769683843068,-2876.18991768,0.00014648,2]
[403933158,1769683843077,-900.0,0.00014768,2]
[403933160,1769683843086,-822.54748319,0.00014795,2]
[403933162,1769683843095,-565.0903288,0.00014795,2]
[403933164,1769683843105,-336.07837269,0.00014795,2]
[403933166,1769683843115,-1500.0,0.00014795,2]
[403933168,1769683843125,-1500.0,0.00014795,2]
[403933170,1769683843134,-1500.0,0.00014795,2]
[403933172,1769683843144,-3712.02819986,0.00014816,2]
[403933174,1769683843153,-160.0,0.00014818,2]
[403933176,1769683843163,-160.0,0.00014818,2]
[403933179,1769683843172,-1041.66666667,0.00014819,2]
[403933180,1769683843182,-743.81857771,0.00014864,2]
[403933182,1769683843190,-151.76349159,0.000149,2]
[403933184,1769683843199,-151.76349157,0.000149,2]
[403933186,1769683843209,-151.76349157,0.000149,2]
[403933188,1769683843218,-2001.01080598,0.00014916,2]
[403933190,1769683843228,-1500.0,0.00014916,2]
[403933192,1769683843237,-1000.0,0.00014916,2]
[403933195,1769683843247,-2000.0,0.00014916,2]
[403933196,1769683843256,-1004.66008898,0.00014916,2]
[403933198,1769683843265,-2000.0,0.00014916,2]
[403933200,1769683843275,-2000.0,0.00014916,2]
[403933202,1769683843284,-174.31678051,0.00014916,2]
[403933204,1769683843293,-2000.0,0.00014916,2]
[403933206,1769683843302,-2000.0,0.00014916,2]
[403933208,1769683843311,-864.0,0.00014924,2]
[403933210,1769683843320,-477.611851,0.00015068,2]
[403933212,1769683843330,-225.18697532,0.00015196,2]
[403933215,1769683843340,-745.65223616,0.00015196,2]
[403933216,1769683843350,-32261.07,0.00015196,2]
[403933218,1769683843359,-617.40005154,0.00015196,2]
[403933220,1769683843368,-2982.60894464,0.00015196,2]
[403933222,1769683843377,-800.0,0.00015197,2]
[403933224,1769683843386,-2975.27431085,0.00015208,2]
[403933226,1769683843395,-2150.0,0.00015234,2]
[403933228,1769683843404,-1369.0,0.00015234,2]
[403933231,1769683843413,-800.0,0.0001525,2]
[403933233,1769683843423,-800.0,0.00015252,2]
[403933235,1769683843432,-8277.5590713,0.00015256,2]
[403933237,1769683843441,-206.6985119,0.00015256,2]
[403933239,1769683843450,-721.8406793,0.00015274,2]
[403933241,1769683843459,-800.0,0.00015278,2]
[403933243,1769683843468,-800.0,0.00015295,2]
[403933244,1769683843477,-800.0,0.00015306,2]
[403933247,1769683843486,-800.0,0.00015365,2]
[403933248,1769683843495,-759.15615123,0.00015394,2]
[403933250,1769683843505,-800.0,0.00015396,2]
[403933252,1769683843514,-200.0,0.00015399,2]
[403933254,1769683843523,-200.65392429,0.00015399,2]
[403933256,1769683843533,-1403795.06538657,0.000154,2]
[403933269,1769683843642,-538.362,0.000154,2]
[403933274,1769683843679,-2538.44115726,0.000154,2]
[403933276,1769683843691,-1268.46129534,0.000154,2]
[403933279,1769683843703,-429.52205352,0.000154,2]
[403933281,1769683843714,-1189.61098215,0.000154,2]
[403933302,1769683843902,-339.83814567,0.000154,2]
[403933305,1769683843914,-2135.24781822,0.000154,2]
[403933314,1769683844035,-1019.05,0.00012329,2]
[403933315,1769683844044,-1150.4680737,0.000154,2]
[403933316,1769683844055,-39249.11717095,0.000154,2]
[403941101,1769683923982,-300.0,0.00011891,2]
[403941516,1769683928699,170.73155875,0.00034844,120]
[403945187,1769683982536,300.0,0.00011891,2]
[403945188,1769683992861,3712.02819988,0.00011891,2]
[403945189,1769684043769,300.0,0.00011891,2]
[403945190,1769684059260,500.0,0.00011891,2]
[403945191,1769684059287,289.03039024,0.00011891,2]
[403945192,1769684059315,500.0,0.00011891,2]
[403945193,1769684068439,500.0,0.00011891,2]
[403945194,1769684068723,500.0,0.00011891,2]
[403945195,1769684068751,500.0,0.00011891,2]
[403945196,1769684068785,500.0,0.00011891,2]
[403945197,1769684069446,500.0,0.00011891,2]
[403945198,1769684069475,500.0,0.00011891,2]
[403945199,1769684069499,500.0,0.00011891,2]
[403945200,1769684069528,298.95140988,0.00011891,2]
[403945201,1769684069549,201.04859012,0.00011891,2]
[403945202,1769684069575,500.0,0.00011891,2]
[403945203,1769684069602,500.0,0.00011891,2]
[403945204,1769684069628,500.0,0.00011891,2]
[403945205,1769684070061,209.3935003,0.00011069,2]
[403945206,1769684097375,1674.87952675,0.00011892,2]
[403945207,1769684102690,1200.0,0.00011891,2]
[403945208,1769684103104,300.0,0.00011891,2]
[403945209,1769684104423,500.0,0.00011891,2]
[403945210,1769684104577,500.0,0.00011891,2]
[403945211,1769684106547,3914.68838283,0.00011892,2]
[403945212,1769684106569,1085.31161717,0.00011892,2]
[403945213,1769684108283,151.0,0.000118,2]
[403945214,1769684108708,500.0,0.00011891,2]
[403945215,1769684108735,151.0,0.000117,2]
[403945216,1769684108763,192.42644161,0.00011891,2]
[403945217,1769684108885,500.0,0.00011891,2]
[403945218,1769684109030,151.0,0.000116,2]
[403945219,1769684109322,151.0,0.000115,2]
[403945220,1769684109608,151.0,0.000114,2]
[403945221,1769684110083,151.0,0.000114,2]
[403945222,1769684110304,151.0,0.000113,2]
[403945223,1769684110628,151.0,0.000112,2]
[403945224,1769684110917,151.0,0.000111,2]
[403945225,1769684111222,151.0,0.00011,2]
[403945226,1769684202345,293.5498943,0.00011069,2]
[403945227,1769684421175,-1200.0,0.00011722,2]
[403945228,1769684421215,-1973.1960621,0.00011723,2]
[403945229,1769684450523,-1200.0,0.00011723,2]
[403945230,1769684477703,300.0,0.00010881,2]
[403945231,1769684504436,-178.73770675,0.00011654,2]
[403945232,1769684505059,-215.94305162,0.00011654,2]
[403945233,1769684507017,215.94305162,0.00011654,2]
[403945234,1769684515400,5000.0,0.00011654,2]
[403945235,1769684519698,-30.81294838,0.00011654,2]
[403945236,1769684545330,-286.38270179,0.00011606,2]
[403945237,1769684547476,-157.52,0.00011606,2]
[403945238,1769684550600,-4556.09729821,0.00011606,2]
[403945239,1769684553697,443.90270179,0.0001149,2]
[403945240,1769684561456,443.91270179,0.00011606,2]
[403945241,1769684561478,4556.08729821,0.00011606,2]
[403945242,1769684597690,-5000.0,0.00011555,2]
[403945243,1769684607437,0.01,0.00011555,2]
[403945244,1769684607459,4999.99,0.00011555,2]
[403945245,1769684625518,855.7467128,0.00011076,2]
[403945246,1769684730198,9144.2632872,0.00010988,2]
[403945247,1769684730218,10000.01,0.00010988,2]
[403945248,1769684730243,8807.2533681,0.00010988,2]
[403945249,1769684754803,-256.86182513,0.00011438,2]
[403945250,1769684757289,-631.42467637,0.00011438,2]
[403945251,1769684758167,189.04878634,0.00034846,120]
[403945252,1769684758840,-567.64803114,0.00011438,2]
[403945253,1769684762042,-262.98676407,0.00011438,2]
[403945254,1769684764039,-297.8959742,0.00011438,2]
[403945255,1769684765534,-210.90587855,0.00011438,2]
[403945256,1769684767589,-199.67986037,0.00011438,2]
[403945257,1769684769107,-162.61758528,0.00011438,2]
[403945258,1769684772910,-596.49243369,0.00011438,2]
[403945259,1769684774358,-246.96224345,0.00011438,2]
[403945260,1769684776484,-277.04905992,0.00011438,2]
[403945261,1769684778649,-197.38113074,0.00011438,2]
[403945262,1769684781289,-210.09255411,0.00011438,2]
[403945263,1769684785798,-386.63466021,0.00011438,2]
[403945264,1769684788458,-225.54373952,0.00011438,2]
[403945265,1769684829747,-200.62462614,0.00011324,2]
[403945266,1769684831784,-156.65967262,0.00011324,2]
[403945268,1769684837354,-299.1739447,0.00011324,2]
[403945269,1769684838855,-212.10815751,0.00011324,2]
[403945270,1769684840424,-199.10127413,0.00011324,2]
[403945271,1769684847138,-300.0,0.00011324,2]
[403945272,1769684848422,-172.33905964,0.00011324,2]
[403945273,1769684849811,-3459.99326526,0.00011324,2]
[403945274,1769684849840,-269.82358325,0.00011438,2]
[403945275,1769684849867,-256.64624404,0.00011554,2]
[403945276,1769684849893,-282.21043664,0.00011614,2]
[403945277,1769684849920,-408.5452872,0.00011672,2]
[403945278,1769684849947,-207.93064547,0.00011672,2]
[403945279,1769684850139,-585.0,0.00011723,2]
[403945280,1769684850169,-189.0,0.00011799,2]
[403945281,1769684850197,-1200.0,0.00011799,2]
[403945282,1769684850225,-300.0,0.00011799,2]
[403945283,1769684850253,-2097.28524789,0.000118,2]
[403945284,1769684852637,-5000.0,0.00011122,2]
[403945285,1769684855804,-2969.62255992,0.000118,2]
[403945286,1769684855834,-500.0,0.00011891,2]
[403945287,1769684855864,-500.0,0.00011891,2]
[403945288,1769684855894,-500.0,0.00011891,2]
[403945289,1769684855921,-500.0,0.00011891,2]
[403945290,1769684856054,-259.93161233,0.00011891,2]
[403945291,1769684856083,-500.0,0.00011891,2]
[403945292,1769684856113,-500.0,0.00011891,2]
[403945293,1769684856141,-500.0,0.00011891,2]
[403945294,1769684856168,-297.50093188,0.00011891,2]
[403945295,1769684856196,-500.0,0.00011891,2]
[403945296,1769684856225,-500.0,0.00011891,2]
[403945297,1769684856254,-500.0,0.00011891,2]
[403945298,1769684856287,-500.0,0.00011891,2]
[403945299,1769684856317,-500.0,0.00011891,2]
[403945300,1769684856347,-289.64315771,0.00011891,2]
[403945301,1769684880065,161.86,3.436e-05,2]
[403945302,1769684880335,161.86,3.436e-05,2]
[403945303,1769684880609,161.86,3.436e-05,2]
[403945304,1769684906396,10000.01,0.00010849,2]
[403945305,1769684906417,5829.0577936,0.00010849,2]
[403945327,1769684998898,-800.0,0.00011555,2]
[403945328,1769684998926,-278.01858636,0.00011614,2]
[403945329,1769684998953,-671.44033377,0.00011672,2]
[403945330,1769684998983,-1501.09215974,0.00011772,2]
[403945331,1769684999140,-3498.90784026,0.00011772,2]
[403945332,1769685002672,300.0,0.0001179,2]
[403945333,1769685009029,1200.0,0.0001179,2]
[403945334,1769685015443,1502.19431948,0.00011691,2]
[403945335,1769685015466,873.50372844,0.00011691,2]
[403945336,1769685019047,5000.0,0.00011791,2]
[403945337,1769685029597,151.0,0.000117,2]
[403945338,1769685030027,151.0,0.000116,2]
[403945339,1769685030331,151.0,0.000116,2]
[403945340,1769685030616,151.0,0.000115,2]
[403945341,1769685030911,151.0,0.000114,2]
[403945342,1769685031301,151.0,0.000113,2]
[403945343,1769685031615,151.0,0.000112,2]
[403945344,1769685031913,151.0,0.000112,2]
[403945353,1769685032207,151.0,0.000111,2]
[403945354,1769685032355,-59682.43402005,0.00011791,2]
[403945355,1769685032369,-854.08839603,0.00011791,2]
[403945356,1769685032409,-458.23756058,0.00011791,2]
[403945359,1769685032677,151.0,0.00011,2]
[403945413,1769685038549,-25138.06837786,0.00011791,2]
[403945419,1769685038602,-3393.54151044,0.00011791,2]
[403945421,1769685038614,-4393.33846381,0.00011791,2]
[403945424,1769685038627,-2306080.29167123,0.00011791,2]
[403945426,1769685038637,-1887.55672311,0.00011791,2]
[403945428,1769685038646,-586.0,0.00011791,2]
[403945430,1769685038656,-500.0,0.00011891,2]
[403945432,1769685038665,-151.0,0.000119,2]
[403945434,1769685038674,-151.0,0.000119,2]
[403945436,1769685038684,-151.0,0.000119,2]
[403945438,1769685038693,-151.0,0.000119,2]
[403945440,1769685038703,-151.0,0.000119,2]
[403945442,1769685038712,-151.0,0.000119,2]
[403945444,1769685038721,-151.0,0.000119,2]
[403945446,1769685038731,-151.0,0.000119,2]
[403945448,1769685038740,-151.0,0.000119,2]
[403945450,1769685038749,-151.0,0.000119,2]
[403945452,1769685038759,-151.0,0.000119,2]
[403945454,1769685038769,-151.0,0.000119,2]
[403945456,1769685038779,-151.0,0.000119,2]
[403945457,1769685038792,-151.0,0.000119,2]